lending/lending_fUSD_20241229
["ID","MTS","AMOUNT","RATE_DAILY","PERIOD"]
[347045444,1735482653836,-3916.94125942,0.000126,2]
[347045445,1735482653845,-150.0,0.00012611,2]
[347045446,1735482653854,-1130.06,0.00012643,2]
[347045447,1735482653864,-643.62,0.00012643,2]
[347045448,1735482653873,-500.0,0.00012643,2]
[347045449,1735482653886,-500.0,0.00012643,2]
[347045450,1735482653896,-2539.39,0.00012643,2]
[347045451,1735482653905,-1196.33,0.00012643,2]
[347045452,1735482653915,-685.5,0.00012643,2]
[347045453,1735482653927,-2186.0,0.00012643,2]
[347045454,1735482653937,-7807.75,0.00012644,2]
[347045455,1735482653946,-1656.0,0.00012644,2]
[347045456,1735482653955,-3446.42,0.00012644,2]
[347045457,1735482653965,-6680.76,0.00012644,2]
[347045458,1735482653974,-2717.63,0.00012644,2]
[347045459,1735482653984,-6905.71,0.00012644,2]
[347045460,1735482653997,-1165.68,0.00012644,2]
[347045461,1735482654006,-208.604514,0.00012645,2]
[347045462,1735482654016,-150.0,0.00012666,2]
[347045463,1735482654026,-518.66594699,0.00012673,2]
[347045464,1735482654035,-500.0,0.00012673,2]
[347045465,1735482654045,-200.48982018,0.00012673,2]
[347045466,1735482654055,-500.0,0.00012698,2]
[347045467,1735482654064,-500.0,0.00012698,2]
[347045468,1735482654074,-2809.94,0.00012698,2]
[347045469,1735482654083,-2447.16,0.00012698,2]
[347045470,1735482654092,-1701.23,0.00012698,2]
[347045471,1735482654102,-500.0,0.00012698,2]
[347045472,1735482654111,-2501.58,0.00012698,2]
[347045473,1735482654121,-522.14,0.00012698,2]
[347045474,1735482654130,-1767.0,0.00012698,2]
[347045475,1735482654139,-1137.37,0.00012698,2]
[347045476,1735482654149,-500.0,0.00012698,2]
[347045477,1735482654159,-500.0,0.00012698,2]
[347045478,1735482654168,-4204.15,0.00012698,2]
[347045479,1735482654178,-1179.19,0.00012698,2]
[347045480,1735482654187,-1638.22,0.00012698,2]
[347045481,1735482654196,-1595.42,0.00012698,2]
[347045482,1735482654205,-1126.24,0.00012698,2]
[347045483,1735482654215,-2304.78,0.00012698,2]
[347045484,1735482654224,-500.0,0.00012698,2]
[347045485,1735482654233,-2376.38,0.00012698,2]
[347045486,1735482654244,-2519.67,0.00012698,2]
[347045487,1735482654254,-1046.72,0.00012698,2]
[347045488,1735482654263,-1056.71,0.00012698,2]
[347045489,1735482654272,-500.0,0.00012698,2]
[347045490,1735482654282,-500.0,0.00012698,2]
[347045491,1735482654291,-1139.66,0.00012698,2]
[347045492,1735482654301,-4055.53,0.00012698,2]
[347045493,1735482654310,-2280.97,0.00012698,2]
[347045494,1735482654320,-971.31,0.00012698,2]
[347045495,1735482654329,-500.0,0.00012698,2]
[347045496,1735482654338,-1072.29,0.00012698,2]
[347045497,1735482654347,-2212.82,0.00012698,2]
[347045498,1735482654356,-941.08,0.00012698,2]
[347045499,1735482654366,-500.0,0.00012698,2]
[347045500,1735482654375,-656.29,0.00012698,2]
[347045501,1735482654384,-1765.76,0.00012698,2]
[347045502,1735482654393,-500.0,0.00012698,2]
[347045503,1735482654402,-500.0,0.00012698,2]
[347045504,1735482654411,-500.0,0.00012698,2]
[347045505,1735482654420,-944.16,0.00012698,2]
[347045506,1735482654429,-1071.23,0.00012698,2]
[347045507,1735482654438,-500.0,0.00012698,2]
[347045508,1735482654448,-1063.75,0.00012698,2]
[347045509,1735482654457,-2876.16,0.00012698,2]
[347045510,1735482654466,-500.0,0.00012698,2]
[347045511,1735482654475,-500.0,0.00012698,2]
[347045512,1735482654485,-1376.3,0.00012698,2]
[347045513,1735482654496,-1031.44,0.00012698,2]
[347045514,1735482654506,-500.0,0.00012698,2]
[347045515,1735482654516,-895.86,0.00012698,2]
[347045516,1735482654527,-4232.94,0.00012698,2]
[347045517,1735482654537,-1416.9,0.00012698,2]
[347045518,1735482654547,-1337.8,0.00012698,2]
[347045519,1735482654556,-1122.12,0.00012698,2]
[347045520,1735482654566,-2064.37,0.00012698,2]
[347045521,1735482654576,-500.0,0.00012698,2]
[347045522,1735482654586,-2905.07,0.00012698,2]
[347045523,1735482654596,-500.0,0.00012698,2]
[347045524,1735482654606,-1234.95,0.00012698,2]
[347045525,1735482654615,-500.0,0.00012698,2]
[347045526,1735482654624,-500.0,0.00012698,2]
[347045527,1735482654634,-500.0,0.00012698,2]
[347045528,1735482654643,-1153.87,0.00012698,2]
[347045529,1735482654652,-2039.44,0.00012698,2]
[347045530,1735482654662,-7109.25,0.00012698,2]
[347045531,1735482654671,-925.15,0.00012698,2]
[347045532,1735482654682,-500.0,0.00012698,2]
[347045533,1735482654691,-1814.77,0.00012698,2]
[347045534,1735482654701,-12788.55,0.00012698,2]
[347045535,1735482654710,-1193.71,0.00012698,2]
[347045536,1735482654720,-500.0,0.00012698,2]
[347045537,1735482654729,-1367.75,0.00012698,2]
[347045538,1735482654739,-3987.61,0.00012698,2]
[347045539,1735482654750,-643.12,0.00012698,2]
[347045540,1735482654760,-1060.8,0.00012698,2]
[347045541,1735482654771,-1342.87,0.00012698,2]
[347045542,1735482654781,-1614.85,0.00012698,2]
[347045543,1735482654792,-531.70041332,0.00012698,2]
[347045544,1735482654803,-16460.32,0.00012698,2]
[347045545,1735482654814,-500.0,0.00012698,2]
[347045546,1735482654824,-1163.14,0.00012698,2]
[347045547,1735482654834,-994.3,0.00012698,2]
[347045548,1735482654845,-12350.89,0.00012698,2]
[347045549,1735482654854,-500.0,0.00012698,2]
[347045550,1735482654864,-1055.91,0.00012698,2]
[347045551,1735482654874,-2224.62,0.00012698,2]
[347045552,1735482654886,-3169.18,0.00012698,2]
[347045553,1735482654896,-500.0,0.00012698,2]
[347045554,1735482654906,-1341.35,0.00012698,2]
[347045555,1735482654917,-1370.75,0.00012698,2]
[347045556,1735482654928,-1043.98,0.00012698,2]
[347045557,1735482654938,-839.48,0.00012698,2]
[347045558,1735482654947,-2482.04,0.00012698,2]
[347045559,1735482654957,-151.0,0.00012698,2]
[347045560,1735482654968,-892.24,0.00012698,2]
[347045561,1735482654978,-151.0,0.00012698,2]
[347045562,1735482654988,-882.03,0.00012698,2]
[347045563,1735482654999,-2254.91,0.00012698,2]
[347045564,1735482655009,-1393.93,0.00012698,2]
[347045565,1735482655018,-687.570025,0.00012698,2]
[347045566,1735482655028,-3040.14,0.00012698,2]
[347045567,1735482655038,-687.570025,0.00012698,2]
[347045568,1735482655047,-527.96282,0.00012698,2]
[347045569,1735482655057,-901.62,0.00012698,2]
[347045570,1735482655067,-500.0,0.00012698,2]
[347045571,1735482655078,-3754.15,0.00012698,2]
[347045572,1735482655090,-527.96282,0.00012698,2]
[347045573,1735482655101,-500.0,0.00012698,2]
[347045574,1735482655111,-151.0,0.00012698,2]
[347045575,1735482655120,-151.0,0.00012698,2]
[347045576,1735482655130,-632.02,0.00012698,2]
[347045577,1735482655139,-1092.4,0.00012698,2]
[347045578,1735482655149,-847.75,0.00012698,2]
[347045579,1735482655158,-500.0,0.00012698,2]
[347045580,1735482655168,-500.0,0.00012699,2]
[347045581,1735482655178,-511.42888273,0.00012699,2]
[347045582,1735482655187,-603.76121631,0.00012699,2]
[347045583,1735482655197,-500.87194471,0.00012699,2]
[347045584,1735482655206,-501.80336329,0.00012699,2]
[347045585,1735482655217,-500.0,0.00012699,2]
[347045586,1735482655230,-500.0,0.00012699,2]
[347045587,1735482655250,-500.0,0.00012699,2]
[347045588,1735482655266,-503.9895556,0.00012699,2]
[347045589,1735482655276,-500.0,0.00012699,2]
[347045590,1735482655286,-500.0,0.00012699,2]
[347045591,1735482655295,-500.0,0.00012699,2]
[347045592,1735482655305,-500.0,0.00012699,2]
[347045593,1735482655314,-257.73133268,0.00012699,2]
[347045594,1735482655324,-500.0,0.00012699,2]
[347045595,1735482655334,-500.0,0.00012699,2]
[347045596,1735482655343,-500.0,0.00012699,2]
[347045597,1735482655353,-500.0,0.00012699,2]
[347045598,1735482655363,-500.0,0.00012699,2]
[347045599,1735482655372,-500.0,0.00012699,2]
[347045600,1735482655383,-500.0,0.00012699,2]
[347045601,1735482655392,-500.0,0.00012699,2]
[347045602,1735482655401,-500.0,0.00012699,2]
[347045603,1735482655412,-608.32405346,0.00012699,2]
[347045604,1735482655424,-500.0,0.00012699,2]
[347045605,1735482655435,-500.0,0.00012699,2]
[347045606,1735482655445,-500.0,0.00012699,2]
[347045607,1735482655454,-637.12,0.00012699,2]
[347045608,1735482655463,-500.0,0.00012699,2]
[347045609,1735482655472,-500.0,0.00012699,2]
[347045610,1735482655481,-500.0,0.00012699,2]
[347045611,1735482655493,-1000.0,0.00012699,2]
[347045612,1735482655502,-500.0,0.00012699,2]
[347045613,1735482655511,-500.0,0.00012699,2]
[347045614,1735482655521,-500.0,0.00012699,2]
[347045615,1735482655530,-500.0,0.00012699,2]
[347045616,1735482655539,-500.0,0.00012699,2]
[347045617,1735482655549,-500.0,0.00012699,2]
[347045618,1735482655559,-500.0,0.00012699,2]
[347045619,1735482655568,-500.0,0.00012699,2]
[347045620,1735482655578,-500.0,0.00012699,2]
[347045621,1735482655587,-500.0,0.00012699,2]
[347045622,1735482655597,-500.0,0.00012699,2]
[347045623,1735482655606,-500.0,0.00012699,2]
[347045624,1735482655616,-500.0,0.00012699,2]
[347045625,1735482655625,-580.31,0.00012699,2]
[347045626,1735482655635,-500.0,0.00012699,2]
[347045627,1735482655644,-500.0,0.00012699,2]
[347045628,1735482655653,-500.0,0.00012699,2]
[347045629,1735482655663,-500.0,0.00012699,2]
[347045630,1735482655672,-503.60555263,0.00012699,2]
[347045631,1735482655682,-500.0,0.00012699,2]
[347045632,1735482655691,-1014.5,0.00012699,2]
[347045633,1735482655701,-500.0,0.00012699,2]
[347045634,1735482655710,-500.0,0.00012699,2]
[347045635,1735482655719,-500.0,0.00012699,2]
[347045636,1735482655728,-500.0,0.00012699,2]
[347045637,1735482655738,-500.0,0.00012699,2]
[347045638,1735482655752,-500.0,0.00012699,2]
[347045639,1735482655763,-500.0,0.00012699,2]
[347045640,1735482655779,-500.0,0.00012699,2]
[347045641,1735482655788,-642.0225633,0.00012699,2]
[347045642,1735482655798,-500.0,0.00012699,2]
[347045643,1735482655807,-500.0,0.00012699,2]
[347045644,1735482655817,-443.25110208,0.00012699,2]
[347045645,1735482655826,-500.0,0.00012699,2]
[347045646,1735482655836,-500.0,0.00012699,2]
[347045647,1735482655845,-500.0,0.00012699,2]
[347045648,1735482655855,-500.0,0.00012699,2]
[347045649,1735482656040,-500.0,0.00012699,2]
[347045650,1735482656052,-515.45079632,0.00012699,2]
[347045651,1735482656062,-500.0,0.00012699,2]
[347045652,1735482656072,-1195.12,0.00012699,2]
[347045653,1735482656081,-500.0,0.00012699,2]
[347045654,1735482656091,-500.0,0.00012699,2]
[347045655,1735482656102,-500.0,0.00012699,2]
[347045656,1735482656114,-500.0,0.00012699,2]
[347045657,1735482656126,-500.0,0.00012699,2]
[347045658,1735482656136,-500.0,0.00012699,7]
[347045659,1735482656146,-500.0,0.00012699,2]
[347045660,1735482656156,-500.0,0.00012699,2]
[347045661,1735482656166,-500.0,0.00012699,2]
[347045662,1735482656178,-500.0,0.00012699,2]
[347045663,1735482656191,-500.0,0.00012699,2]
[347045664,1735482656203,-500.0,0.00012699,2]
[347045665,1735482656212,-812.75,0.00012699,2]
[347045666,1735482656224,-500.0,0.00012699,2]
[347045667,1735482656234,-500.0,0.00012699,2]
[347045668,1735482656247,-500.0,0.00012699,2]
[347045669,1735482656257,-846.87,0.00012699,2]
[347045670,1735482656269,-964.63,0.00012699,2]
[347045671,1735482656280,-500.0,0.00012699,2]
[347045672,1735482656292,-244.21432753,0.00012699,2]
[347045673,1735482656302,-933.32,0.00012699,2]
[347045674,1735482656313,-500.0,0.00012699,2]
[347045675,1735482656323,-500.0,0.00012699,2]
[347045676,1735482656333,-500.0,0.00012699,2]
[347045677,1735482656342,-689.89,0.00012699,2]
[347045678,1735482656352,-500.0,0.00012699,2]
[347045679,1735482656362,-500.0,0.00012699,2]
[347045680,1735482656372,-500.0,0.00012699,2]
[347045681,1735482656381,-500.0,0.00012699,2]
[347045682,1735482656390,-500.0,0.00012699,2]
[347045683,1735482656400,-500.0,0.00012699,2]
[347045684,1735482656409,-500.0,0.00012699,2]
[347045685,1735482656418,-483.66466594,0.00012699,2]
[347045686,1735482656427,-500.0,0.00012699,2]
[347045687,1735482656436,-500.0,0.00012699,2]
[347045688,1735482656446,-555.39,0.00012699,2]
[347045689,1735482656455,-1287.88,0.00012699,2]
[347045690,1735482656466,-500.0,0.00012699,2]
[347045691,1735482656476,-1888.27,0.00012699,2]
[347045692,1735482656485,-633.32,0.00012699,2]
[347045693,1735482656501,-1207.65,0.00012699,2]
[347045694,1735482656514,-500.0,0.00012699,2]
[347045695,1735482656525,-500.0,0.00012699,2]
[347045696,1735482656535,-1380.1,0.00012699,2]
[347045697,1735482656545,-500.0,0.00012699,2]
[347045698,1735482656555,-500.0,0.00012699,2]
[347045699,1735482656565,-500.0,0.00012699,2]
[347045700,1735482656575,-397.45351825,0.00012699,2]
[347045701,1735482656586,-500.0,0.00012699,2]
[347045702,1735482656596,-1008.2,0.00012699,2]
[347045703,1735482656605,-500.0,0.00012699,2]
[347045704,1735482656615,-2700.65,0.00012699,2]
[347045705,1735482656625,-500.0,0.00012699,2]
[347045706,1735482656635,-511.74,0.00012699,2]
[347045707,1735482656645,-761.14,0.00012699,2]
[347045708,1735482656654,-2037.87,0.00012699,2]
[347045709,1735482656664,-500.0,0.00012699,2]
[347045710,1735482656673,-500.0,0.00012699,2]
[347045711,1735482656683,-500.0,0.00012699,2]
[347045712,1735482656693,-500.0,0.00012699,2]
[347045713,1735482656702,-500.0,0.00012699,2]
[347045714,1735482656712,-2844.96,0.00012699,2]
[347045715,1735482656721,-500.0,0.00012699,2]
[347045716,1735482656731,-2637.02,0.00012699,2]
[347045717,1735482656742,-500.0,0.00012699,2]
[347045718,1735482656751,-508.47,0.00012699,2]
[347045719,1735482656761,-500.0,0.00012699,2]
[347045720,1735482656771,-630.15,0.00012699,2]
[347045721,1735482656781,-500.0,0.00012699,2]
[347045722,1735482656790,-500.0,0.00012699,2]
[347045723,1735482656800,-500.0,0.00012699,2]
[347045724,1735482656810,-680.73,0.00012699,2]
[347045725,1735482656820,-500.0,0.00012699,2]
[347045726,1735482656829,-500.0,0.00012699,2]
[347045727,1735482656840,-500.0,0.00012699,2]
[347045728,1735482656850,-500.0,0.00012699,2]
[347045729,1735482656860,-789.04,0.00012699,2]
[347045730,1735482656869,-500.0,0.00012699,2]
[347045731,1735482656881,-975.87,0.00012699,2]
[347045732,1735482656891,-500.0,0.00012699,2]
[347045733,1735482656900,-500.0,0.00012699,2]
[347045734,1735482656910,-1047.26,0.00012699,2]
[347045735,1735482656922,-500.0,0.00012699,2]
[347045736,1735482656932,-500.0,0.00012699,2]
[347045737,1735482656941,-526.74195265,0.00012699,2]
[347045738,1735482656951,-500.0,0.00012699,2]
[347045739,1735482656960,-500.0,0.00012699,2]
[347045740,1735482656969,-500.0,0.00012699,2]
[347045741,1735482656979,-1591.37,0.00012699,2]
[347045742,1735482656989,-604.13,0.00012699,2]
[347045743,1735482657001,-500.0,0.00012699,2]
[347045744,1735482657011,-500.0,0.00012699,2]
[347045745,1735482657022,-500.0,0.00012699,2]
[347045746,1735482657032,-1156.0,0.00012699,2]
[347045747,1735482657043,-826.81,0.00012699,2]
[347045748,1735482657052,-500.0,0.00012699,2]
[347045749,1735482657061,-899.46,0.00012699,2]
[347045750,1735482657071,-514.02949377,0.00012699,2]
[347045751,1735482657080,-500.0,0.00012699,2]
[347045752,1735482657090,-500.0,0.00012699,2]
[347045753,1735482657099,-500.0,0.00012699,2]
[347045754,1735482657109,-671.82,0.00012699,2]
[347045755,1735482657118,-587.6,0.00012699,2]
[347045756,1735482657128,-500.0,0.00012699,2]
[347045757,1735482657138,-2002.42,0.00012699,2]
[347045758,1735482657147,-500.0,0.00012699,2]
[347045759,1735482657156,-366.60818538,0.00012699,2]
[347045760,1735482657165,-848.84,0.00012699,2]
[347045761,1735482657175,-642.03,0.00012699,2]
[347045762,1735482657184,-500.0,0.00012699,2]
[347045763,1735482657194,-1456.37,0.00012699,2]
[347045764,1735482657203,-500.0,0.00012699,2]
[347045765,1735482657213,-1234.19,0.00012699,2]
[347045766,1735482657223,-396.87249409,0.00012699,2]
[347045767,1735482657232,-500.0,0.00012699,2]
[347045768,1735482657243,-500.0,0.00012699,2]
[347045769,1735482657252,-500.0,0.00012699,2]
[347045770,1735482657262,-528.68092393,0.00012699,2]
[347045771,1735482657272,-500.0,0.00012699,2]
[347045772,1735482657281,-1201.41,0.00012699,2]
[347045773,1735482657290,-500.0,0.00012699,2]
[347045774,1735482657300,-500.0,0.00012699,2]
[347045775,1735482657310,-2029.83,0.00012699,2]
[347045776,1735482657319,-1028.65,0.00012699,2]
[347045777,1735482657328,-500.0,0.00012699,2]
[347045778,1735482657338,-500.0,0.00012699,2]
[347045779,1735482657347,-500.0,0.00012699,2]
[347045780,1735482657357,-500.0,0.00012699,2]
[347045781,1735482657366,-728.39,0.00012699,2]
[347045782,1735482657375,-509.13986403,0.00012699,2]
[347045783,1735482657384,-1667.6,0.00012699,2]
[347045784,1735482657393,-500.0,0.00012699,2]
[347045785,1735482657403,-500.0,0.00012699,2]
[347045786,1735482657412,-1349.02,0.00012699,2]
[347045787,1735482657422,-868.8,0.00012699,2]
[347045788,1735482657432,-1472.31,0.00012699,2]
[347045789,1735482657441,-500.0,0.00012699,2]
[347045790,1735482657450,-500.0,0.00012699,2]
[347045791,1735482657459,-500.0,0.00012699,2]
[347045792,1735482657469,-872.53,0.00012699,2]
[347045793,1735482657478,-500.0,0.00012699,2]
[347045794,1735482657488,-841.83,0.00012699,2]
[347045795,1735482657501,-500.0,0.00012699,2]
[347045796,1735482657512,-500.0,0.00012699,2]
[347045797,1735482657521,-500.0,0.00012699,2]
[347045798,1735482657532,-150.0,0.00012699,2]
[347045799,1735482657541,-2231.13,0.00012699,2]
[347045800,1735482657551,-500.0,0.00012699,2]
[347045801,1735482657561,-5000.0,0.00012699,2]
[347045802,1735482657570,-1136.05,0.00012699,2]
[347045803,1735482657580,-802.03,0.00012699,2]
[347045804,1735482657589,-500.0,0.00012699,2]
[347045805,1735482657599,-500.0,0.00012699,2]
[347045806,1735482657608,-500.0,0.00012699,2]
[347045807,1735482657617,-689.42,0.00012699,2]
[347045808,1735482657626,-4383.38,0.00012699,2]
[347045809,1735482657635,-1544.41,0.00012699,2]
[347045810,1735482657645,-626.16,0.00012699,2]
[347045811,1735482657654,-2477.41,0.00012699,2]
[347045812,1735482657664,-500.0,0.00012699,2]
[347045813,1735482657673,-500.0,0.00012699,2]
[347045814,1735482657683,-500.0,0.00012699,2]
[347045815,1735482657692,-1162.59,0.00012699,2]
[347045816,1735482657701,-1410.31,0.00012699,2]
[347045817,1735482657711,-5373.71,0.00012699,2]
[347045818,1735482657720,-5373.71,0.00012699,2]
[347045819,1735482657729,-5373.71,0.00012699,2]
[347045820,1735482657738,-5373.71,0.00012699,2]
[347045821,1735482657751,-976.01,0.00012699,2]
[347045822,1735482657760,-500.0,0.00012699,2]
[347045823,1735482657769,-500.0,0.00012699,2]
[347045824,1735482657779,-500.0,0.00012699,2]
[347045825,1735482657788,-1328.0,0.00012699,2]
[347045826,1735482657797,-500.0,0.00012699,2]
[347045827,1735482657807,-500.0,0.00012699,2]
[347045828,1735482657816,-500.0,0.00012699,2]
[347045829,1735482657826,-4134.32,0.00012699,2]
[347045830,1735482657836,-500.0,0.00012699,2]
[347045831,1735482657845,-500.0,0.00012699,2]
[347045832,1735482657854,-1001.18,0.00012699,2]
[347045833,1735482657863,-585.82,0.00012699,2]
[347045834,1735482657878,-500.0,0.00012699,2]
[347045835,1735482657895,-500.0,0.00012699,2]
[347045836,1735482657908,-500.0,0.00012699,2]
[347045837,1735482657921,-7915.22,0.00012699,2]
[347045838,1735482657936,-500.0,0.00012699,2]
[347045839,1735482657949,-945.57,0.00012699,2]
[347045840,1735482657962,-1071.55,0.00012699,2]
[347045841,1735482657975,-2769.29,0.00012699,2]
[347045842,1735482657989,-500.0,0.00012699,2]
[347045843,1735482658001,-500.0,0.00012699,2]
[347045844,1735482658013,-500.0,0.00012699,2]
[347045845,1735482658025,-862.11,0.00012699,2]
[347045846,1735482658039,-500.0,0.00012699,2]
[347045847,1735482658052,-500.0,0.00012699,2]
[347045848,1735482658066,-2777.42,0.00012699,2]
[347045849,1735482658079,-500.0,0.00012699,2]
[347045850,1735482658093,-1192.52,0.00012699,2]
[347045851,1735482658106,-1026.32,0.00012699,2]
[347045852,1735482658119,-500.0,0.00012699,2]
[347045853,1735482658132,-2262.69,0.00012699,2]
[347045854,1735482658145,-5201.83,0.00012699,2]
[347045855,1735482658158,-15240.94,0.00012699,2]
[347045856,1735482658171,-500.0,0.00012699,2]
[347045857,1735482658184,-1252.98,0.00012699,2]
[347045858,1735482658195,-4135.45,0.00012699,2]
[347045859,1735482658206,-514.75,0.00012699,2]
[347045860,1735482658218,-5065.05,0.00012699,2]
[347045861,1735482658230,-1866.7,0.00012699,2]
[347045862,1735482658245,-500.0,0.00012699,2]
[347045863,1735482658256,-3425.4,0.00012699,2]
[347045864,1735482658267,-500.0,0.00012699,2]
[347045865,1735482658278,-4510.67,0.00012699,2]
[347045866,1735482658291,-715.36,0.00012699,2]
[347045867,1735482658306,-2442.77,0.00012699,2]
[347045868,1735482658317,-1092060.0,0.000127,2]
[347045869,1735482658328,-151.0,0.000127,2]
[347045870,1735482658339,-174.671628,0.000127,2]
[347045871,1735482658351,-151.0,0.000127,2]
[347045872,1735482658363,-151.0,0.000127,2]
[347045873,1735482658374,-151.0,0.000127,2]
[347045874,1735482658387,-151.0,0.000127,2]
[347045875,1735482658399,-222.01318,0.000127,2]
[347045876,1735482658410,-222.01318,0.000127,2]
[347045877,1735482658422,-151.0,0.000127,2]
[347045878,1735482658434,-151.0,0.000127,2]
[347045879,1735482658446,-151.0,0.000127,2]
[347045880,1735482658457,-151.075974,0.000127,2]
[347045881,1735482658469,-151.0,0.000127,2]
[347045882,1735482658480,-157.13065,0.000127,2]
[347045883,1735482658492,-157.13065,0.000127,2]
[347045884,1735482658503,-151.0,0.000127,2]
[347045885,1735482658515,-305.946151,0.000127,2]
[347045886,1735482658526,-305.946151,0.000127,2]
[347045887,1735482658539,-151.0,0.000127,2]
[347045888,1735482658550,-151.0,0.000127,2]
[347045889,1735482658562,-151.0,0.000127,2]
[347045890,1735482658574,-151.0,0.000127,2]
[347045891,1735482658585,-151.0,0.000127,2]
[347045892,1735482658597,-151.0,0.000127,2]
[347045893,1735482658609,-151.0,0.000127,2]
[347045894,1735482658621,-687.570025,0.000127,2]
[347045895,1735482658633,-687.570025,0.000127,2]
[347045896,1735482658649,-527.96282,0.000127,2]
[347045897,1735482658661,-527.96282,0.000127,2]
[347045898,1735482658673,-151.0,0.000127,2]
[347045899,1735482658685,-247.873824,0.000127,2]
[347045900,1735482658697,-22106.44246644,0.00012739,2]
[347045901,1735482658708,-571.0883934,0.00012739,2]
[347045902,1735482658720,-3074.73,0.00012744,2]
[347045903,1735482658732,-500.0,0.00012744,2]
[347045904,1735482658745,-5938.7,0.00012744,2]
[347045905,1735482658758,-2546.5,0.00012744,2]
[347045906,1735482658770,-6991.15,0.00012744,2]
[347045907,1735482658782,-4358.33,0.00012744,2]
[347045908,1735482658793,-7298.46,0.00012744,2]
[347045909,1735482658806,-3145.76,0.00012744,2]
[347045910,1735482658818,-2771.66,0.00012744,2]
[347045911,1735482658830,-3712.47,0.00012744,2]
[347045912,1735482658842,-2128.64,0.00012744,2]
[347045913,1735482658854,-6267.54,0.00012744,2]
[347045914,1735482658866,-3076.63,0.00012744,2]
[347045915,1735482658878,-3809.83,0.00012744,2]
[347045916,1735482658891,-2262.49,0.00012744,2]
[347045917,1735482658903,-5810.5,0.00012744,2]
[347045918,1735482658916,-23493.70148248,0.0001275,2]
[347045919,1735482658927,-3916.9412594,0.0001275,2]
[347045920,1735482658938,-5373.71,0.00012753,2]
[347045921,1735482658950,-5373.71,0.00012753,2]
[347045922,1735482658962,-867.87,0.00012754,2]
[347045923,1735482658973,-500.0,0.00012754,2]
[347045924,1735482658985,-6599.56,0.00012754,2]
[347045925,1735482659000,-1155.66,0.00012754,2]
[347045926,1735482659011,-794.71,0.00012754,2]
[347045927,1735482659023,-1348.45,0.00012754,2]
[347045928,1735482659035,-3004.31,0.00012755,2]
[347045929,1735482659050,-3115.51,0.00012755,2]
[347045930,1735482659061,-2671.44,0.00012755,2]
[347045931,1735482659072,-2377.84,0.00012755,2]
[347045932,1735482659083,-3999.44,0.00012755,2]
[347045933,1735482659095,-3902.29,0.00012755,2]
[347045934,1735482659106,-4448.25,0.00012755,2]
[347045935,1735482659117,-6018.18,0.00012755,2]
[347045936,1735482659130,-58945.15,0.00012755,2]
[347045937,1735482659141,-4764.95,0.00012755,2]
[347045938,1735482659152,-2715.79,0.00012755,2]
[347045939,1735482659163,-1318.07,0.00012755,2]
[347045940,1735482659174,-4444.67,0.00012755,2]
[347045941,1735482659185,-31413.47,0.00012755,2]
[347045942,1735482659196,-987.4,0.00012755,2]
[347045943,1735482659207,-5373.71,0.00012755,2]